[Event "*** SCC Grand Prix: Titled Tuesday Blitz"]
[Site "Chess.com"]
[Date "2020.06.02"]
[Round "3"]
[White "FMJoseHerrera"]
[Black "ViIIagra"]
[Result "1-0"]
[WhiteElo "2653"]
[BlackElo "2835"]
[TimeControl "180+1"]
[EndTime "10:29:22 PDT"]
[Termination "FMJoseHerrera won by resignation"]

1. Nf3 {[%clk 0:03:00.9]} 1... d5 {[%clk 0:02:59]} 2. g3 {[%clk 0:03:00.4]} 2...
Nd7 {[%clk 0:02:59]} 3. Bg2 {[%clk 0:03:00.1]} 3... e5 {[%clk 0:02:59]} 4. O-O
{[%clk 0:03:00.4]} 4... Bd6 {[%clk 0:02:58.9]} 5. c4 {[%clk 0:02:56.3]} 5... d4
{[%clk 0:02:46.3]} 6. b4 {[%clk 0:02:44.4]} 6... Bxb4 {[%clk 0:02:32.8]} 7. Nxe5
{[%clk 0:02:43.1]} 7... Ngf6 {[%clk 0:02:15.8]} 8. Nf3 {[%clk 0:02:38.5]} 8...
c5 {[%clk 0:02:12.9]} 9. e3 {[%clk 0:02:08.1]} 9... dxe3 {[%clk 0:02:08.3]} 10.
dxe3 {[%clk 0:02:03.2]} 10... O-O {[%clk 0:02:07.3]} 11. Bb2 {[%clk 0:02:03.2]}
11... Nb6 {[%clk 0:01:56.8]} 12. Qc2 {[%clk 0:02:00.7]} 12... h6 {[%clk
0:01:51.7]} 13. Rd1 {[%clk 0:01:53.4]} 13... Qe7 {[%clk 0:01:51.7]} 14. Nbd2
{[%clk 0:01:52.2]} 14... Bd7 {[%clk 0:01:51]} 15. Nb3 {[%clk 0:01:48.2]} 15...
Ba4 {[%clk 0:01:38.2]} 16. Nh4 {[%clk 0:01:37.6]} 16... Rad8 {[%clk 0:01:26.9]}
17. Nf5 {[%clk 0:01:36]} 17... Qe6 {[%clk 0:01:26.9]} 18. Bh3 {[%clk 0:01:16.4]}
18... Qxc4 {[%clk 0:01:10.3]} 19. Nxh6+ {[%clk 0:01:09.9]} 19... gxh6 {[%clk
0:01:10.2]} 20. Qf5 {[%clk 0:00:42.7]} 20... Bc3 {[%clk 0:00:50.5]} 21. Rdc1
{[%clk 0:00:35.9]} 21... Bxb2 {[%clk 0:00:42.9]} 22. Rxc4 {[%clk 0:00:35.6]}
22... Nxc4 {[%clk 0:00:43.8]} 23. Rb1 {[%clk 0:00:33.3]} 23... Bd7 {[%clk
0:00:31.5]} 24. Qc2 {[%clk 0:00:21.2]} 24... Bxh3 {[%clk 0:00:30.7]} 25. Qxc4
{[%clk 0:00:21.7]} 25... Be5 {[%clk 0:00:20.1]} 26. Qh4 {[%clk 0:00:20.5]} 26...
Bf5 {[%clk 0:00:19.2]} 27. Rc1 {[%clk 0:00:20.6]} 27... b6 {[%clk 0:00:19.3]}
28. Qxh6 {[%clk 0:00:20.4]} 28... Bg6 {[%clk 0:00:19.8]} 29. Qg5 {[%clk
0:00:20.9]} 29... Rfe8 {[%clk 0:00:19.7]} 30. h4 {[%clk 0:00:21]} 30... Ne4
{[%clk 0:00:20.1]} 31. Qg4 {[%clk 0:00:20.5]} 31... Kh8 {[%clk 0:00:19.5]} 32.
h5 {[%clk 0:00:20.8]} 32... Bh7 {[%clk 0:00:19.8]} 33. Rd1 {[%clk 0:00:19.4]}
33... Nf6 {[%clk 0:00:14.8]} 34. Rxd8 {[%clk 0:00:19.2]} 34... Rxd8 {[%clk
0:00:15.7]} 35. Qg5 {[%clk 0:00:18.4]} 35... Re8 {[%clk 0:00:11.6]} 36. h6
{[%clk 0:00:18.5]} 36... Ne4 {[%clk 0:00:12.2]} 37. Qg4 {[%clk 0:00:17.3]} 37...
Bf6 {[%clk 0:00:12]} 38. Qd7 {[%clk 0:00:17.2]} 38... Rf8 {[%clk 0:00:11.8]} 39.
Qxa7 {[%clk 0:00:17.4]} 39... Ng5 {[%clk 0:00:11]} 40. Qxb6 {[%clk 0:00:17.8]}
40... Bb2 {[%clk 0:00:05.8]} 41. Qxc5 {[%clk 0:00:17.9]} 41... Ne6 {[%clk
0:00:04.7]} 42. Qe7 {[%clk 0:00:17.8]} 42... Kg8 {[%clk 0:00:04.5]} 43. Nd4
{[%clk 0:00:18.1]} 43... Bxd4 {[%clk 0:00:04.2]} 44. exd4 {[%clk 0:00:18.6]}
44... Nxd4 {[%clk 0:00:05.1]} 45. Qg5+ {[%clk 0:00:18.9]} 45... Bg6 {[%clk
0:00:04.9]} 46. Qf6 {[%clk 0:00:19.8]} 46... Ne6 {[%clk 0:00:05.4]} 47. a4
{[%clk 0:00:19.6]} 47... Kh7 {[%clk 0:00:05.9]} 48. g4 {[%clk 0:00:19.5]} 48...
Kxh6 {[%clk 0:00:06.1]} 49. f4 {[%clk 0:00:19.5]} 49... Rc8 {[%clk 0:00:05.2]}
50. f5 {[%clk 0:00:20]} 50... Nf8 {[%clk 0:00:05.8]} 51. g5+ {[%clk 0:00:20]}
51... Kh7 {[%clk 0:00:06]} 52. fxg6+ {[%clk 0:00:20.6]} 52... Nxg6 {[%clk
0:00:06.9]} 53. Qxf7+ {[%clk 0:00:21.3]} 1-0

[Event "*** SCC Grand Prix: Titled Tuesday Blitz"]
[Site "Chess.com"]
[Date "2020.06.02"]
[Round "3"]
[White "Rish_97"]
[Black "Shota_Azaladze"]
[Result "0-1"]
[WhiteElo "2634"]
[BlackElo "2843"]
[TimeControl "180+1"]
[EndTime "10:29:22 PDT"]
[Termination "Shota_Azaladze won by resignation"]

1. Nf3 {[%clk 0:03:00.3]} 1... g6 {[%clk 0:02:58.7]} 2. d4 {[%clk 0:02:56]} 2...
Bg7 {[%clk 0:02:58.3]} 3. g3 {[%clk 0:02:56.5]} 3... d6 {[%clk 0:02:55.3]} 4.
Bg2 {[%clk 0:02:56.8]} 4... e5 {[%clk 0:02:55.8]} 5. O-O {[%clk 0:02:55.5]} 5...
Nc6 {[%clk 0:02:53.9]} 6. dxe5 {[%clk 0:02:18.9]} 6... dxe5 {[%clk 0:02:53.3]}
7. Qxd8+ {[%clk 0:02:18.3]} 7... Nxd8 {[%clk 0:02:54]} 8. Nc3 {[%clk 0:02:18.2]}
8... c6 {[%clk 0:02:48.5]} 9. a4 {[%clk 0:02:01.6]} 9... f6 {[%clk 0:02:42]} 10.
a5 {[%clk 0:02:01.4]} 10... Bf5 {[%clk 0:02:33.3]} 11. e4 {[%clk 0:01:17.5]}
11... Bg4 {[%clk 0:02:32.9]} 12. Be3 {[%clk 0:01:16.6]} 12... Bh6 {[%clk
0:02:31.9]} 13. Bxh6 {[%clk 0:00:49.2]} 13... Nxh6 {[%clk 0:02:31.5]} 14. Nd2
{[%clk 0:00:50.1]} 14... Nhf7 {[%clk 0:02:24.5]} 15. Nb3 {[%clk 0:00:49.3]}
15... Kd7 {[%clk 0:02:12.9]} 16. Nc5+ {[%clk 0:00:46.9]} 16... Kc7 {[%clk
0:02:13]} 17. h3 {[%clk 0:00:46.8]} 17... Bc8 {[%clk 0:02:09.5]} 18. f4 {[%clk
0:00:42.5]} 18... Ne6 {[%clk 0:02:04.6]} 19. Nd3 {[%clk 0:00:39.3]} 19... exf4
{[%clk 0:02:03.6]} 20. gxf4 {[%clk 0:00:36.9]} 20... Nd4 {[%clk 0:02:01.4]} 21.
Rac1 {[%clk 0:00:31.5]} 21... b6 {[%clk 0:01:57.5]} 22. Kf2 {[%clk 0:00:30.2]}
22... Re8 {[%clk 0:01:56.5]} 23. Ke3 {[%clk 0:00:27.5]} 23... Nf5+ {[%clk
0:01:55.9]} 24. Kf2 {[%clk 0:00:27.7]} 24... Nh4 {[%clk 0:01:53]} 25. Bh1 {[%clk
0:00:20]} 25... Re7 {[%clk 0:01:46.9]} 26. Kg3 {[%clk 0:00:19.4]} 26... g5
{[%clk 0:01:47.3]} 27. e5 {[%clk 0:00:16.3]} 27... Nf5+ {[%clk 0:01:38.3]} 28.
Kh2 {[%clk 0:00:16.4]} 28... fxe5 {[%clk 0:01:37.9]} 29. fxg5 {[%clk 0:00:13]}
29... N5d6 {[%clk 0:00:59.1]} 30. h4 {[%clk 0:00:11.7]} 30... Bf5 {[%clk
0:00:59]} 31. Rce1 {[%clk 0:00:11.4]} 31... Rae8 {[%clk 0:00:51.7]} 32. Ne4
{[%clk 0:00:11.5]} 32... Nxe4 {[%clk 0:00:45.9]} 33. Bxe4 {[%clk 0:00:12.4]}
33... Bxe4 {[%clk 0:00:46.5]} 34. Rxe4 {[%clk 0:00:13.1]} 34... Nd6 {[%clk
0:00:47.4]} 35. Re2 {[%clk 0:00:13.1]} 35... e4 {[%clk 0:00:47.2]} 36. Nf4
{[%clk 0:00:13.5]} 36... bxa5 {[%clk 0:00:42.5]} 37. Nh5 {[%clk 0:00:12.9]}
37... Rb8 {[%clk 0:00:32]} 38. b3 {[%clk 0:00:12.2]} 38... a4 {[%clk 0:00:30.5]}
39. bxa4 {[%clk 0:00:11.2]} 39... Rb4 {[%clk 0:00:31]} 40. a5 {[%clk 0:00:10.1]}
40... e3 {[%clk 0:00:30.5]} 41. Rf4 {[%clk 0:00:08.3]} 41... Rxf4 {[%clk
0:00:21.7]} 42. Nxf4 {[%clk 0:00:09.2]} 42... Nf5 {[%clk 0:00:22.3]} 43. h5
{[%clk 0:00:06.6]} 43... Re4 {[%clk 0:00:21.3]} 44. Ng2 {[%clk 0:00:03.6]} 44...
Kd6 {[%clk 0:00:21.5]} 45. g6 {[%clk 0:00:03.3]} 45... hxg6 {[%clk 0:00:21.3]}
46. hxg6 {[%clk 0:00:04.2]} 46... Kc5 {[%clk 0:00:19.4]} 47. Kg1 {[%clk
0:00:04.5]} 47... Rg4 {[%clk 0:00:18.8]} 48. Kf1 {[%clk 0:00:04.5]} 48... Ng3+
{[%clk 0:00:18.8]} 0-1

[Event "*** SCC Grand Prix: Titled Tuesday Blitz"]
[Site "Chess.com"]
[Date "2020.06.02"]
[Round "3"]
[White "GMSrinath"]
[Black "AcostaPablo"]
[Result "1-0"]
[WhiteElo "2804"]
[BlackElo "2607"]
[TimeControl "180+1"]
[EndTime "10:29:22 PDT"]
[Termination "GMSrinath won by resignation"]

1. Nf3 {[%clk 0:03:00.9]} 1... Nf6 {[%clk 0:02:56.6]} 2. c4 {[%clk 0:03:01.4]}
2... c5 {[%clk 0:02:55]} 3. g3 {[%clk 0:03:01.1]} 3... e6 {[%clk 0:02:52]} 4.
Bg2 {[%clk 0:03:01.5]} 4... d5 {[%clk 0:02:52.2]} 5. cxd5 {[%clk 0:02:59]} 5...
Nxd5 {[%clk 0:02:52]} 6. O-O {[%clk 0:02:59.4]} 6... Nc6 {[%clk 0:02:51.7]} 7.
Nc3 {[%clk 0:02:59.3]} 7... Be7 {[%clk 0:02:51.7]} 8. d4 {[%clk 0:02:24.9]} 8...
Nxc3 {[%clk 0:02:38.1]} 9. bxc3 {[%clk 0:02:24.4]} 9... O-O {[%clk 0:02:38.7]}
10. Bf4 {[%clk 0:02:16.3]} 10... Qa5 {[%clk 0:02:36.9]} 11. Qb3 {[%clk 0:02:08]}
11... Qa6 {[%clk 0:02:24.3]} 12. Rfe1 {[%clk 0:02:05.9]} 12... Rd8 {[%clk
0:02:10.2]} 13. e3 {[%clk 0:01:59.7]} 13... Na5 {[%clk 0:01:53.3]} 14. Qc2
{[%clk 0:01:51]} 14... Bd7 {[%clk 0:01:49]} 15. Ng5 {[%clk 0:01:42.7]} 15...
Bxg5 {[%clk 0:01:34.2]} 16. Bxg5 {[%clk 0:01:43.6]} 16... f6 {[%clk 0:01:33.6]}
17. Bf4 {[%clk 0:01:41.5]} 17... Rac8 {[%clk 0:01:22.5]} 18. Rab1 {[%clk
0:01:21.5]} 18... Bc6 {[%clk 0:01:18.4]} 19. Bf1 {[%clk 0:01:18.1]} 19... c4
{[%clk 0:01:01.8]} 20. e4 {[%clk 0:01:17.6]} 20... b5 {[%clk 0:00:57.3]} 21.
Rbd1 {[%clk 0:01:03.2]} 21... Qb7 {[%clk 0:00:47.7]} 22. Bh3 {[%clk 0:00:49.5]}
22... Bd7 {[%clk 0:00:47.8]} 23. Bg2 {[%clk 0:00:45.9]} 23... Qb6 {[%clk
0:00:45.9]} 24. e5 {[%clk 0:00:41.7]} 24... Bc6 {[%clk 0:00:26.3]} 25. exf6
{[%clk 0:00:41.4]} 25... Bxg2 {[%clk 0:00:26.5]} 26. Kxg2 {[%clk 0:00:42.3]}
26... gxf6 {[%clk 0:00:26.7]} 27. Qe2 {[%clk 0:00:42.3]} 27... Re8 {[%clk
0:00:20]} 28. Kg1 {[%clk 0:00:35.2]} 28... Kh8 {[%clk 0:00:20.2]} 29. Qh5 {[%clk
0:00:34.4]} 29... Qb7 {[%clk 0:00:19.9]} 30. Bh6 {[%clk 0:00:31.2]} 30... Qd7
{[%clk 0:00:17.7]} 31. Re4 {[%clk 0:00:27.3]} 31... Nc6 {[%clk 0:00:17.6]} 32.
Rde1 {[%clk 0:00:24.4]} 32... Re7 {[%clk 0:00:17.6]} 33. Qh4 {[%clk 0:00:21.1]}
33... Rf7 {[%clk 0:00:11.8]} 34. Rxe6 {[%clk 0:00:21]} 34... Rg8 {[%clk
0:00:11.8]} 35. Rxf6 {[%clk 0:00:18.4]} 35... b4 {[%clk 0:00:11.8]} 36. Rxf7
{[%clk 0:00:12.3]} 36... Qxf7 {[%clk 0:00:12.7]} 37. Qe4 {[%clk 0:00:12.8]}
37... Qf6 {[%clk 0:00:11.2]} 38. Bf4 {[%clk 0:00:11.6]} 38... bxc3 {[%clk
0:00:11.7]} 39. d5 {[%clk 0:00:12.1]} 39... Qg6 {[%clk 0:00:07.7]} 40. dxc6
{[%clk 0:00:10.8]} 40... Qxe4 {[%clk 0:00:08.4]} 41. Rxe4 {[%clk 0:00:11.3]}
41... Rd8 {[%clk 0:00:09.1]} 42. Rxc4 {[%clk 0:00:10.6]} 42... Rc8 {[%clk
0:00:09.1]} 43. Rxc3 {[%clk 0:00:09.9]} 43... Kg7 {[%clk 0:00:10]} 44. c7 {[%clk
0:00:10]} 44... Kf7 {[%clk 0:00:10.4]} 45. Rd3 {[%clk 0:00:09.9]} 45... Ke7
{[%clk 0:00:10.5]} 46. Rd8 {[%clk 0:00:10.3]} 46... Rxd8 {[%clk 0:00:10.7]} 47.
Bg5+ {[%clk 0:00:10.9]} 47... Ke6 {[%clk 0:00:10]} 48. cxd8=Q {[%clk 0:00:11.8]}
48... Kf5 {[%clk 0:00:10.9]} 49. Bf4 {[%clk 0:00:11.7]} 49... Kg4 {[%clk
0:00:11.8]} 1-0

[Event "*** SCC Grand Prix: Titled Tuesday Blitz"]
[Site "Chess.com"]
[Date "2020.06.02"]
[Round "3"]
[White "plumalka"]
[Black "PavlovDanila"]
[Result "0-1"]
[WhiteElo "2400"]
[BlackElo "2629"]
[TimeControl "180+1"]
[EndTime "10:29:24 PDT"]
[Termination "PavlovDanila won by resignation"]

1. e4 {[%clk 0:03:00.9]} 1... e6 {[%clk 0:02:59.6]} 2. d4 {[%clk 0:03:00.7]}
2... d5 {[%clk 0:02:59.4]} 3. Nc3 {[%clk 0:03:01]} 3... Nf6 {[%clk 0:02:51.9]}
4. Bg5 {[%clk 0:03:00.4]} 4... Be7 {[%clk 0:02:51.9]} 5. e5 {[%clk 0:03:00.3]}
5... Nfd7 {[%clk 0:02:52.1]} 6. h4 {[%clk 0:03:00.7]} 6... Bxg5 {[%clk
0:02:51.7]} 7. hxg5 {[%clk 0:03:01.6]} 7... Qxg5 {[%clk 0:02:52]} 8. Qd3 {[%clk
0:02:56.2]} 8... g6 {[%clk 0:02:51.7]} 9. Nf3 {[%clk 0:02:53.9]} 9... Qe7 {[%clk
0:02:51.6]} 10. O-O-O {[%clk 0:02:53.1]} 10... a6 {[%clk 0:02:50.8]} 11. Qe3
{[%clk 0:02:50.9]} 11... c5 {[%clk 0:02:50.3]} 12. dxc5 {[%clk 0:02:39.2]} 12...
Nc6 {[%clk 0:02:33.9]} 13. Rh6 {[%clk 0:02:22.9]} 13... Qxc5 {[%clk 0:02:22.7]}
14. Qf4 {[%clk 0:01:25.5]} 14... Qxf2 {[%clk 0:02:00]} 15. Bd3 {[%clk 0:01:25]}
15... Ncxe5 {[%clk 0:01:53.3]} 16. Rdh1 {[%clk 0:01:08.4]} 16... Nxd3+ {[%clk
0:01:32.9]} 17. cxd3 {[%clk 0:01:09.3]} 17... Nc5 {[%clk 0:01:22]} 18. Qd4
{[%clk 0:01:05.5]} 18... Qxd4 {[%clk 0:01:20.7]} 19. Nxd4 {[%clk 0:01:05.4]}
19... Nxd3+ {[%clk 0:01:13.5]} 20. Kc2 {[%clk 0:01:02.2]} 20... Nb4+ {[%clk
0:01:05.7]} 21. Kb3 {[%clk 0:01:00]} 21... Nc6 {[%clk 0:01:05.7]} 22. Nf3 {[%clk
0:00:54.2]} 22... Bd7 {[%clk 0:00:48.1]} 23. Ng5 {[%clk 0:00:52.8]} 23... Ke7
{[%clk 0:00:41.6]} 24. Re1 {[%clk 0:00:49]} 24... Kf6 {[%clk 0:00:35.2]} 25.
Nxh7+ {[%clk 0:00:48.5]} 25... Kg7 {[%clk 0:00:34.1]} 26. Reh1 {[%clk
0:00:48.1]} 26... Nd4+ {[%clk 0:00:33.5]} 27. Ka3 {[%clk 0:00:39.8]} 27... Nc2+
{[%clk 0:00:30]} 28. Kb3 {[%clk 0:00:39.1]} 28... Nd4+ {[%clk 0:00:30.3]} 29.
Ka3 {[%clk 0:00:39.2]} 29... Nf5 {[%clk 0:00:31.2]} 30. R6h3 {[%clk 0:00:36.8]}
30... f6 {[%clk 0:00:28.2]} 31. g4 {[%clk 0:00:32.5]} 31... Nd4 {[%clk
0:00:27.9]} 32. b3 {[%clk 0:00:24.9]} 32... Rac8 {[%clk 0:00:27.4]} 33. Kb2
{[%clk 0:00:24.9]} 33... b5 {[%clk 0:00:27.6]} 34. R1h2 {[%clk 0:00:24.2]} 34...
b4 {[%clk 0:00:27.6]} 35. Nd1 {[%clk 0:00:24.5]} 35... e5 {[%clk 0:00:26.5]} 36.
Rh4 {[%clk 0:00:21.1]} 36... g5 {[%clk 0:00:22.7]} 37. Rh6 {[%clk 0:00:20.6]}
37... Bxg4 {[%clk 0:00:21.6]} 38. Ne3 {[%clk 0:00:20.4]} 38... Bf5 {[%clk
0:00:21.3]} 39. Nxd5 {[%clk 0:00:20.2]} 39... Rxh7 {[%clk 0:00:20]} 40. Rxh7+
{[%clk 0:00:16.3]} 40... Bxh7 {[%clk 0:00:20.9]} 41. Nxf6 {[%clk 0:00:14.7]}
41... Kxf6 {[%clk 0:00:21.8]} 42. Rxh7 {[%clk 0:00:14.6]} 42... Rc2+ {[%clk
0:00:21.9]} 43. Kb1 {[%clk 0:00:15.2]} 43... Rc6 {[%clk 0:00:21.9]} 44. Rh6+
{[%clk 0:00:15.5]} 44... Kf5 {[%clk 0:00:22.2]} 45. Rh7 {[%clk 0:00:16]} 45...
g4 {[%clk 0:00:21.6]} 46. a4 {[%clk 0:00:16.2]} 46... Rg6 {[%clk 0:00:21]} 47.
Rf7+ {[%clk 0:00:15.7]} 47... Ke4 {[%clk 0:00:21]} 48. a5 {[%clk 0:00:15.7]}
48... g3 {[%clk 0:00:21.4]} 49. Ka2 {[%clk 0:00:16.1]} 49... g2 {[%clk
0:00:21.6]} 50. Rf2 {[%clk 0:00:15.1]} 50... g1=Q {[%clk 0:00:21.7]} 51. Rd2
{[%clk 0:00:04.6]} 51... Rg2 {[%clk 0:00:21.3]} 0-1

[Event "*** SCC Grand Prix: Titled Tuesday Blitz"]
[Site "Chess.com"]
[Date "2020.06.02"]
[Round "3"]
[White "evgchess5"]
[Black "Majesth"]
[Result "1-0"]
[WhiteElo "2846"]
[BlackElo "2445"]
[TimeControl "180+1"]
[EndTime "10:29:25 PDT"]
[Termination "evgchess5 won on time"]

1. e4 {[%clk 0:03:00]} 1... e6 {[%clk 0:02:59.7]} 2. d4 {[%clk 0:02:59.5]} 2...
d5 {[%clk 0:03:00.2]} 3. Bd3 {[%clk 0:02:59.5]} 3... c5 {[%clk 0:02:58.8]} 4.
exd5 {[%clk 0:02:58.7]} 4... exd5 {[%clk 0:02:59.2]} 5. Nf3 {[%clk 0:02:58.5]}
5... Nf6 {[%clk 0:02:58.5]} 6. O-O {[%clk 0:02:57.7]} 6... Nc6 {[%clk
0:02:56.2]} 7. Re1+ {[%clk 0:02:56.7]} 7... Be6 {[%clk 0:02:54.5]} 8. Bf5 {[%clk
0:02:33.8]} 8... Qd7 {[%clk 0:02:43.3]} 9. Qe2 {[%clk 0:02:31.1]} 9... cxd4
{[%clk 0:02:09]} 10. Ng5 {[%clk 0:02:11.4]} 10... Nd8 {[%clk 0:02:01.5]} 11. Nd2
{[%clk 0:02:05.7]} 11... Be7 {[%clk 0:01:35.8]} 12. Bxe6 {[%clk 0:01:56.1]}
12... Nxe6 {[%clk 0:01:34.3]} 13. Nxe6 {[%clk 0:01:54.3]} 13... Qxe6 {[%clk
0:01:26.2]} 14. Qxe6 {[%clk 0:01:51.2]} 14... fxe6 {[%clk 0:01:26.6]} 15. Nb3
{[%clk 0:01:45.7]} 15... Kf7 {[%clk 0:00:59.6]} 16. Nxd4 {[%clk 0:01:44.7]}
16... Ne4 {[%clk 0:00:51]} 17. f3 {[%clk 0:01:38.2]} 17... Bc5 {[%clk
0:00:40.9]} 18. Be3 {[%clk 0:01:37.5]} 18... Bxd4 {[%clk 0:00:25.3]} 19. Bxd4
{[%clk 0:01:35]} 19... Nd6 {[%clk 0:00:22.4]} 20. Re2 {[%clk 0:01:32.5]} 20...
Rhe8 {[%clk 0:00:21.4]} 21. Rae1 {[%clk 0:01:30.1]} 21... b6 {[%clk 0:00:20]}
22. c3 {[%clk 0:01:24.6]} 22... Rac8 {[%clk 0:00:19.6]} 23. g4 {[%clk
0:01:21.3]} 23... g6 {[%clk 0:00:19.1]} 24. Kg2 {[%clk 0:01:20.9]} 24... Nb5
{[%clk 0:00:18.7]} 25. Be5 {[%clk 0:01:19.5]} 25... Rc6 {[%clk 0:00:18.9]} 26.
h4 {[%clk 0:01:18.4]} 26... Nd6 {[%clk 0:00:19.3]} 27. Kg3 {[%clk 0:01:15.4]}
27... Nc4 {[%clk 0:00:18.6]} 28. Bd4 {[%clk 0:01:14.7]} 28... a6 {[%clk
0:00:17.7]} 29. Kf4 {[%clk 0:01:07.4]} 29... Nd6 {[%clk 0:00:16.3]} 30. Rh1
{[%clk 0:01:02.2]} 30... b5 {[%clk 0:00:15.4]} 31. h5 {[%clk 0:01:01.7]} 31...
Ke7 {[%clk 0:00:12.1]} 32. hxg6 {[%clk 0:01:00.8]} 32... hxg6 {[%clk 0:00:13]}
33. Rh7+ {[%clk 0:01:00.5]} 33... Nf7 {[%clk 0:00:12.8]} 34. Rg7 {[%clk
0:00:54.4]} 34... a5 {[%clk 0:00:10.7]} 35. Kg3 {[%clk 0:00:46.2]} 35... g5
{[%clk 0:00:09.9]} 36. Rh2 {[%clk 0:00:37.8]} 36... b4 {[%clk 0:00:09.6]} 37.
Rhh7 {[%clk 0:00:37.2]} 37... Rf8 {[%clk 0:00:09.5]} 38. Rg6 {[%clk 0:00:22.4]}
38... bxc3 {[%clk 0:00:07.8]} 39. bxc3 {[%clk 0:00:21.7]} 39... Kd7 {[%clk
0:00:07.6]} 40. Rxg5 {[%clk 0:00:17.8]} 40... e5 {[%clk 0:00:06.3]} 41. Rxe5
{[%clk 0:00:15.4]} 41... Rd6 {[%clk 0:00:05.9]} 42. Rf5 {[%clk 0:00:15.1]} 42...
Ke8 {[%clk 0:00:05.8]} 43. Bc5 {[%clk 0:00:14.6]} 1-0

[Event "*** SCC Grand Prix: Titled Tuesday Blitz"]
[Site "Chess.com"]
[Date "2020.06.02"]
[Round "3"]
[White "Sergey85Rodchenkov"]
[Black "VMikhalevski"]
[Result "0-1"]
[WhiteElo "2531"]
[BlackElo "2749"]
[TimeControl "180+1"]
[EndTime "10:29:27 PDT"]
[Termination "VMikhalevski won by resignation"]

1. e4 {[%clk 0:03:00.9]} 1... e5 {[%clk 0:02:59.1]} 2. Nf3 {[%clk 0:03:00.4]}
2... Nc6 {[%clk 0:02:58.9]} 3. Bc4 {[%clk 0:03:00.9]} 3... Bc5 {[%clk
0:02:57.8]} 4. c3 {[%clk 0:03:01.3]} 4... Nf6 {[%clk 0:02:58.3]} 5. d3 {[%clk
0:03:01.5]} 5... O-O {[%clk 0:02:55.6]} 6. O-O {[%clk 0:03:01.8]} 6... d6 {[%clk
0:02:50.6]} 7. Nbd2 {[%clk 0:03:00.6]} 7... a5 {[%clk 0:02:49.8]} 8. a4 {[%clk
0:02:58.3]} 8... Re8 {[%clk 0:02:47.7]} 9. h3 {[%clk 0:02:51.6]} 9... Be6 {[%clk
0:02:44.5]} 10. Re1 {[%clk 0:02:49.8]} 10... h6 {[%clk 0:02:39.8]} 11. Bxe6
{[%clk 0:02:41]} 11... Rxe6 {[%clk 0:02:39.1]} 12. Nc4 {[%clk 0:02:41.1]} 12...
d5 {[%clk 0:02:33.3]} 13. exd5 {[%clk 0:02:19.1]} 13... Qxd5 {[%clk 0:02:32.7]}
14. Be3 {[%clk 0:02:19]} 14... Bf8 {[%clk 0:02:29.4]} 15. Qb3 {[%clk 0:02:09.2]}
15... Qxd3 {[%clk 0:02:00]} 16. Rad1 {[%clk 0:02:08.2]} 16... Qf5 {[%clk
0:01:50.2]} 17. Qxb7 {[%clk 0:02:04.3]} 17... Rae8 {[%clk 0:01:32.4]} 18. Qxc7
{[%clk 0:02:01]} 18... Ne4 {[%clk 0:01:25.5]} 19. Rd5 {[%clk 0:01:45.3]} 19...
R8e7 {[%clk 0:01:00.7]} 20. Qc8 {[%clk 0:01:41.4]} 20... Re8 {[%clk 0:01:00.8]}
21. Qb7 {[%clk 0:01:34.7]} 21... R8e7 {[%clk 0:01:00.6]} 22. Rd7 {[%clk
0:01:32.5]} 22... Rg6 {[%clk 0:00:58.3]} 23. Nh4 {[%clk 0:01:25]} 23... Qxd7
{[%clk 0:00:57.2]} 24. Qxd7 {[%clk 0:01:24]} 24... Rxd7 {[%clk 0:00:57.2]} 25.
Nxg6 {[%clk 0:01:24.5]} 25... fxg6 {[%clk 0:00:57.2]} 26. Bb6 {[%clk 0:01:23.6]}
26... Nc5 {[%clk 0:00:51]} 27. Nxe5 {[%clk 0:01:13.4]} 27... Re7 {[%clk
0:00:42.2]} 28. Nf3 {[%clk 0:01:11.9]} 28... Rxe1+ {[%clk 0:00:40.8]} 29. Nxe1
{[%clk 0:01:12.8]} 29... Kf7 {[%clk 0:00:38.6]} 30. Bxc5 {[%clk 0:01:09.9]}
30... Bxc5 {[%clk 0:00:38]} 31. Nd3 {[%clk 0:01:10.8]} 31... Bd6 {[%clk
0:00:37.8]} 32. Kf1 {[%clk 0:01:09.3]} 32... Ke6 {[%clk 0:00:37.3]} 33. Ke2
{[%clk 0:01:09.9]} 33... Kd5 {[%clk 0:00:37.6]} 34. b3 {[%clk 0:01:09.6]} 34...
Ne5 {[%clk 0:00:37.5]} 35. Nf4+ {[%clk 0:01:06.7]} 35... Kc6 {[%clk 0:00:36.8]}
36. Ke3 {[%clk 0:01:02]} 36... Bc5+ {[%clk 0:00:33.4]} 37. Ke4 {[%clk
0:01:01.4]} 37... Kd6 {[%clk 0:00:31.6]} 38. f3 {[%clk 0:00:58.9]} 38... g5
{[%clk 0:00:29.6]} 39. Nh5 {[%clk 0:00:48.8]} 39... g6 {[%clk 0:00:29.3]} 40.
Nf6 {[%clk 0:00:47.8]} 40... Nc6 {[%clk 0:00:26.5]} 41. g4 {[%clk 0:00:36]}
41... Ne7 {[%clk 0:00:22.3]} 42. Ne8+ {[%clk 0:00:24.6]} 42... Kd7 {[%clk
0:00:20]} 43. Nf6+ {[%clk 0:00:21.4]} 43... Ke6 {[%clk 0:00:20.4]} 44. Ne8
{[%clk 0:00:21.3]} 44... Nd5 {[%clk 0:00:18.8]} 45. c4 {[%clk 0:00:20.7]} 45...
Nf4 {[%clk 0:00:18.1]} 46. Nc7+ {[%clk 0:00:19.6]} 46... Kd6 {[%clk 0:00:17.1]}
47. Ne8+ {[%clk 0:00:17.7]} 47... Ke7 {[%clk 0:00:13.6]} 48. Nc7 {[%clk
0:00:17.7]} 48... Nxh3 {[%clk 0:00:12.3]} 49. Kd5 {[%clk 0:00:18.1]} 49... Bb4
{[%clk 0:00:12]} 50. c5 {[%clk 0:00:16.8]} 50... Nf4+ {[%clk 0:00:12.4]} 51. Kc6
{[%clk 0:00:16.3]} 51... h5 {[%clk 0:00:12.5]} 0-1